Cogmind - Beta 17 @@@ ROGUE MODE // 2026.07.09 @ 17:06:16 Player: teag2 Result: Destroyed by H8-WB8(R) with Subdweller Machine Gun Performance ------------- Evolutions (0) 0 Regions Visited (2) 400 Robots Destroyed (14) 70 Value Destroyed (509) 509 Prototype IDs (18) 360 Alien Tech Used (0) 0 Bonus (-6) -6 TOTAL SCORE: 1333 Bonus ------- Friendly Fire -6 Cogmind --------- Core Integrity 0/250 Matter 233/300 Energy 207/280 System Corruption 0% Temperature Cool (0) Movement Rolling (105) Ox1 Location -10/Subcaves Parts ------- > --- POWER (1) -------- Heavy Ion Engine (fused) > --- PROPULSION (2) --- Armored Wheel (fused) > --- UTILITY (2) ------ Thermal Barrier (fused) Thermal Barrier (fused) > --- WEAPON (2) ------- Precision Beam Rifle (fused) Subdweller Shrapnel Launcher > --- INVENTORY (5) ---- Light Ion Engine Scrap Shield Peak State ------------ > --- POWER ------------ Heavy Ion Engine > --- PROPULSION ------- Armored Wheel Armored Huge Wheel > --- UTILITY ---------- Small Storage Unit Tower Shield Self-contained Transmogrifier > --- WEAPON ----------- Precision Beam Rifle Subdweller Machine Gun Subdweller Shrapnel Launcher Plasma Cutter > --- INVENTORY -------- Light Ion Engine Subdweller Monowheel Scrap Shield EM Pulse Gun [Rating: 53] Favorites ----------- Power Ion Engine Engine Ion Engine Propulsion Aluminum Leg Treads Light Treads Leg Aluminum Leg Wheel Armored Wheel Utility Small Storage Unit Device Self-contained Transmogrifier Storage Small Storage Unit Protection Tower Shield Weapon EM Pulse Gun Energy Gun EM Pulse Gun Energy Cannon Subdweller Beam Cannon Ballistic Gun Subdweller Machine Gun Launcher Grenade Launcher Special Weapon Plasma Cutter Build | -11 -10 -10 ------- Run | Yrd Mat Sub Slots Evolved . | . . . Power . | . . . Propulsion . | . . . Utility . | . . . Weapon . | . . . Parts Attached 16 | 7 1 8 Power 1 | . 1 . Engine 1 | . 1 . Core . | . . . Reactor . | . . . Propulsion 4 | 4 . . Treads 2 | 2 . . Leg 2 | 2 . . Wheel . | . . . Hover . | . . . Flight . | . . . Utility 4 | 1 . 3 Device 1 | . . 1 Storage 1 | 1 . . Processor . | . . . Hackware . | . . . Protection 2 | . . 2 Artifact . | . . . Weapon 7 | 2 . 5 Energy Gun 2 | 2 . . Energy Cannon 1 | . . 1 Ballistic Gun 1 | . . 1 Ballistic Cannon . | . . . Launcher 3 | . . 3 Special Weapon . | . . . Impact Weapon . | . . . Slashing Weapon . | . . . Piercing Weapon . | . . . Special Melee Weapon . | . . . Unidentified Prototypes 1 | . . 1 Parts Lost 3 | . . 3 Power . | . . . Propulsion 1 | . . 1 Utility . | . . . Weapon 2 | . . 2 Highest Loss Streak 2 | . . 2 To Critical Strikes . | . . . Average Backups 4 | 2 5 4 Power 1 | 1 1 1 Propulsion 1 | 1 2 . Utility . | . . . Weapon 1 | . 2 1 Tool/Special . | . . . Unused Backups 3 | . . 3 Power 1 | . . 1 Propulsion 1 | . . 1 Utility . | . . . Weapon 1 | . . 1 Tool/Special . | . . . Average Slot Usage (%) 74 | . 78 74 Engine 10 | . 9 11 Treads 7 | . . 8 Leg 10 | . 26 8 Wheel 3 | . . 3 Device 3 | . . 3 Storage 8 | . 14 7 Protection 4 | . . 5 Energy Gun 13 | . 27 12 Energy Cannon 1 | . . 1 Ballistic Gun 1 | . . 2 Launcher 6 | . . 6 Special Weapon 1 | . . 1 Peak Build Rating 53 | 5 6 53 Average Rating 20 | 4 5 23 On Entrance 3 | . 5 6 Avg Prop Armor Cover (%) 4 | . . 4 Naked Turns . | . . . Heaviest Build 66 | 9 14 66 Greatest Support 43 | 40 20 43 Greatest Overweight (x) 5 | . 2 5 Average Overweight (x) . | . . 1 Largest Inventory Capacity 8 | 8 8 8 Average Capacity 7 | 7 8 7 Most Carried 8 | 5 8 8 Average Carried 5 | 3 5 5 Final Capacity 8 | 8 8 5 Final Carried 6 | 5 6 3 Transmogrified Parts 11 | . . 11 Integrity Recovered 92 | . . 92 Class Distribution -------------------- 73% | Mutant 26% | Gunner Dominant Class ---------------- Mutant | -10/Materials Mutant | -10/Subcaves Resources | -11 -10 -10 ----------- Run | Yrd Mat Sub Matter Collected 584 | 215 . 369 Remotely . | . . . Salvage Created 473 | . 86 387 Parts 24 | . 4 20 Haulers Intercepted 1 | . 1 . Recyclers Shooed 1 | . 1 . Parts Field Recycled . | . . . Retrieved Matter . | . . . Parts Self-Destructed 5 | . . 5 Prevented 1 | . . 1 Parts Restored . | . . . Kills | -11 -10 -10 ------- Run | Yrd Mat Sub Combat Hostiles Destroyed 12 | . . 12 Guns 4 | . . 4 AOE 7 | . . 7 Classes Destroyed 4 | . 2 2 Hauler 1 | . 1 . Watcher 1 | . 1 . Grunt 2 | . . 2 Subdweller 10 | . . 10 Best Kill Streak 2 | . 1 2 Combat Bots Only 2 | . . 2 Max Kills in Single Turn 2 | . 1 2 Gunslinging . | . . . Exploded 2 | . . 2 Melee . | . . . Uniques/NPCs Destroyed . | . . . Combat | -11 -10 -10 -------- Run | Yrd Mat Sub Hostile Shots Fired 43 | . . 43 Missed 17 | . . 17 Hits 26 | . . 26 Projectile 26 | . . 26 Damage Taken 762 | . . 762 Core 250 | . . 250 Absorbed by Shields . | . . . Ignored by Resistances 10 | . . 10 Core Remaining (%) 100 | 100 . . Volleys Fired 62 | . 7 55 Largest 2 | . 2 2 Hottest 80 | . 80 80 Shots Fired 90 | . 14 76 Gun 57 | . 14 43 Cannon 13 | . . 13 Launcher 17 | . . 17 Special 3 | . . 3 Kinetic 4 | . . 4 Thermal 28 | . . 28 Explosive 13 | . . 13 Electromagnetic 45 | . 14 31 Robot Hit Streak 26 | . 6 26 Robot Miss Streak 2 | . 1 2 Penetration Max . | . . . Secondary Targets . | . . . Shots Hit Robots 54 | . 10 44 Core Hits 25 | . 2 23 Critical Kills . | . . . Critical Parts Destroyed . | . . . Critical Strikes 2 | . . 2 Burn 2 | . . 2 Melee Attacks . | . . . Impact . | . . . Slashing . | . . . Piercing . | . . . Sneak Attacks . | . . . Combat Hostiles . | . . . Follow-up Attacks . | . . . Damage Inflicted 1618 | . 203 1415 Guns 601 | . 156 445 Cannons . | . . . Explosions 1013 | . 43 970 Melee . | . . . Ramming 4 | . 4 . Kinetic 211 | . . 211 Thermal 255 | . 43 212 Explosive 714 | . . 714 Electromagnetic 434 | . 156 278 Impact . | . . . Slashing . | . . . Piercing . | . . . Highest Corruption . | . . . Average Corruption . | . . . Corruption Purged . | . . . Corruption Blocked . | . . . Overload Shots . | . . . Overflow Damage 20 | . . 20 Projectiles . | . . . Explosions 20 | . . 20 Melee . | . . . Knockbacks . | . . . Impact . | . . . Kinetic . | . . . Secondary . | . . . Self-Inflicted Damage 234 | . . 234 Shots 8 | . . 8 Rammed . | . . . Targets Rammed 1 | . 1 . Kicked 1 | . 1 . Crushed . | . . . Highest Temperature 72 | . 72 1 Average Temperature 29 | . 30 1 Received Heat Transfer 129 | . . 129 Siege Activations . | . . . Martial Activations . | . . . Shielding Activations . | . . . Robots Disrupted . | . . . Combat Hostiles . | . . . Robots Corrupted 2 | . 1 1 Combat Hostiles 1 | . . 1 Parts Fried 1 | . . 1 Impact Corruptions . | . . . Robots Melted . | . . . Combat Hostiles . | . . . Parts Melted . | . . . Heat Transferred 668 | . 50 618 Parts Sabotaged . | . . . Parts Stolen . | . . . Parts Stripped . | . . . Power Chain Reactions 2 | . 1 1 Alert | -11 -10 -10 ------- Run | Yrd Mat Sub Maximum Alert Level . | . . . Low Security (%) 100 | 100 100 . Level 1 . | . . . Level 2 . | . . . Level 3 . | . . . Level 4 . | . . . Level 5 . | . . . High Security . | . . . Max Security . | . . . Peak Influence 25 | . 25 . Initial . | . . . Average 2 | . 3 . Influence Increases 82 | . 32 50 Destroy 0b10 Robot/C 40 | . . 40 Destroy 0b10 Robot/NC 10 | . 10 . Destroy Leader 14 | . 4 10 Disable Machine 15 | . 15 . Destroy Structure 3 | . 3 . Influence Decreases 82 | . 32 50 Time Decay 82 | . 32 50 Squads Dispatched . | . . . Investigation . | . . . Extermination . | . . . Reinforcement . | . . . Assault . | . . . Garrison . | . . . Intercept . | . . . Searches Triggered . | . . . Construction Impeded . | . . . Haulers Reinforced . | . . . Active Scanning Responses . | . . . Cargo Convoy Interrupts . | . . . Stealth | -11 -10 -10 --------- Run | Yrd Mat Sub Distress Signals . | . . . Communications Jammed . | . . . Distress Signals . | . . . Times Spotted 14 | . 2 12 Peak Tracking Total 2 | . 2 2 Tactical Retreats . | . . . Traps | -11 -10 -10 ------- Run | Yrd Mat Sub Traps Triggered 4 | . 4 . Indirectly . | . . . Trap Hack Attempts . | . . . Triggered . | . . . Disarmed . | . . . Reprogrammed . | . . . Reused . | . . . Traps Extracted . | . . . Installed . | . . . Triggered . | . . . Machines | -11 -10 -10 ---------- Run | Yrd Mat Sub Machines Disabled 2 | . 1 1 Max in Single Turn 1 | . 1 1 Machines Repaired . | . . . Machines Dismantled . | . . . Machines Sabotaged . | . . . Overloaded Fab Kills . | . . . Hacking | -11 -10 -10 --------- Run | Yrd Mat Sub Machines Accessed 3 | . 1 2 Terminals 1 | . 1 . Fabricators . | . . . Repair Stations . | . . . Recycling Units . | . . . Scanalyzers . | . . . Garrison Access . | . . . Total Hacks 12 | . 6 6 Successful 6 | . . 6 Failed 6 | . 6 . Catastrophic 2 | . 2 . Database Lockouts . | . . . Manual 6 | . 6 . Terminals 6 | . 6 . Fabricators . | . . . Repair Stations . | . . . Recycling Units . | . . . Scanalyzers . | . . . Garrison Access . | . . . Terminal Hacks 6 | . . 6 Record 5 | . . 5 Proto ID Catalog 1 | . . 1 Fabricator Hacks . | . . . Repair Station Hacks . | . . . Recycling Unit Hacks . | . . . Scanalyzer . | . . . Garrison Access Hacks . | . . . Unauthorized Hacks . | . . . Terminals . | . . . Fabricators . | . . . Repair Stations . | . . . Recycling Units . | . . . Scanalyzers . | . . . Garrison Access . | . . . Data Cores Recovered . | . . . Used . | . . . Hacking Detections 1 | . 1 . Full Trace Events 1 | . 1 . Feedback Events . | . . . Feedback Blocked . | . . . Robot Schematics Acquired . | . . . Robots Built . | . . . Authchips . | . . . Time . | . . . Total Robot Build Rating . | . . . Part Schematics Acquired . | . . . Parts Built . | . . . Authchips . | . . . Time . | . . . Total Part Build Rating . | . . . Part Studies Acquired . | . . . Parts Repaired . | . . . Time . | . . . Parts Recycled . | . . . Recycled Matter . | . . . Retrieved Matter . | . . . Retrieved Components . | . . . Parts Scanalyzed . | . . . Part Schematics Acquired . | . . . Parts Damaged . | . . . Bothacking | -11 -10 -10 ------------ Run | Yrd Mat Sub Used RIF Installer . | . . . Robots Hacked . | . . . Non-combat . | . . . Combat . | . . . Robot Hacks Applied . | . . . Relay Couplers Released . | . . . Fabnet Peak Effective % . | . . . Robots Rewired . | . . . Allies Hacked . | . . . Hacks Repelled . | . . . Allies | -11 -10 -10 -------- Run | Yrd Mat Sub Total Allies . | . . . Largest Group . | . . . Highest-Rated Group . | . . . Highest-Rated Ally . | . . . Total Orders . | . . . Ally Attacks . | . . . Total Damage . | . . . Kills . | . . . Allies Corrupted . | . . . Allies Melted . | . . . Intel | -11 -10 -10 ------- Run | Yrd Mat Sub Active Infowar (turns) . | . . . Robot Analysis Total . | . . . Derelict Logs Recovered 1 | . . 1 Drone Launches . | . . . Drone Recoveries . | . . . Exploration | -11 -10 -10 ------------- Run | Yrd Mat Sub Turns Passed 2038 | 96 186 1756 Spaces Moved 1277 | 66 129 1082 Core 17 | 10 7 . Treads 249 | 17 . 232 Legs 589 | 39 122 428 Wheels 422 | . . 422 Hover . | . . . Flight . | . . . Fastest Speed 50 | 50 100 105 Average Speed 141 | 119 119 145 Slowest Speed 320 | 160 150 320 Overloaded Moves . | . . . Propulsion Burnouts . | . . . Robots Hopped . | . . . Potential Cave-ins . | . . . Cave-ins Triggered . | . . . Exploration Rate (%) 27 | 4 22 56 Regions Visited 2 Branch Regions 1 Pre-discovered Areas 1 | . . 1 Known Exits Taken . | . . . Unknown Exits Taken 2 | 1 1 . Scrap Searched . | . . . Spaces Dug . | . . . Terrain Destroyed 112 | . 2 110 Melee . | . . . Projectile 1 | . . 1 AOE 111 | . 2 109 Terrain Rammed . | . . . Walls Destroyed . | . . . Machines Disabled . | . . . Actions | -11 -10 -10 --------- Run | Yrd Mat Sub Total 1416 | 82 145 1189 Wait 12 | . . 12 Move 1275 | 65 128 1082 Hop . | . . . Pick Up 27 | 10 4 13 Fast Attach 2 | . 2 . Attach 18 | 5 3 10 Detach 2 | . . 2 Swap 6 | 2 . 4 Drop 9 | . . 9 Fire 62 | . 7 55 Melee . | . . . Ram . | . . . Kick 1 | . 1 . Crush . | . . . Escape Stasis . | . . . Rewire . | . . . Trap . | . . . Miscellaneous 2 | . . 2 Route ------- -11/Scrapyard -10/Materials (discovered 3 exits: [*Min x2] / *Sub) -10/Subcaves History --------- Turn | Location | Event 7 | -11/Scrapyard | Discovered new exit (range 15) 97 | -11/Scrapyard | Entered Materials 180 | -10/Materials | Discovered new exit (range 13) 271 | -10/Materials | Discovered new exit (range 12) 277 | -10/Materials | Discovered new exit (range 5) 283 | -10/Materials | Entered Subcaves 284 | -10/Subcaves | Approached by a straggling Scientist 306 | -10/Subcaves | Build established: Mutant 318 | -10/Subcaves | Visited Clippyterm 321 | -10/Subcaves | Learned Factory stockpile data 718 | -10/Subcaves | A swath of the cavern ceiling suddenly collapsed 899 | -10/Subcaves | Core integrity fell below 50% 1144 | -10/Subcaves | Visited 4L-MR0's lab 1160 | -10/Subcaves | Found Prototype Device 1170 | -10/Subcaves | Found Tower Shield 1174 | -10/Subcaves | Attached Tower Shield, gained temporary slots: Power, Propulsion x2, Utility x2, Weapon x2 1324 | -10/Subcaves | Shifting Twisted Machinery released Sub. Machine Gun 1350 | -10/Subcaves | Shifting Twisted Machinery released Sub. Monowheel 1383 | -10/Subcaves | Identified Sfc. Transmogrifier 1670 | -10/Subcaves | Build established: Gunner 1877 | -10/Subcaves | Shifting Twisted Machinery released Sub. Power Source 1879 | -10/Subcaves | Shifting Twisted Machinery released Sub. Shrapnel Launcher 1986 | -10/Subcaves | Ambushed by Subdweller buried in earth 2023 | -10/Subcaves | Core integrity fell below 20% 2039 | -10/Subcaves | Destroyed by H8-WB8(R) with Subdweller Machine Gun Last Messages --------------- Temporary Propulsion slot lost. Temporary Utility slot lost. Temporary Weapon slot lost. Dropped Sub. Monowheel. Dropped EM Pulse Gun. Acquired Sub. Shrapnel Launcher. GI-KI3(c): "I think it's somewhere northeast of here" Discarded Plasma Cutter. TP-R8E(R): "SLEEPOVER!" TP-R8E(R) destroyed. 9G-CSN(R) destroyed. Acquired 33 matter. GI-KI3(c): "I think it's somewhere northeast of here" H8-WB8(R) suffers critical hit (Burn). G9-318(R) destroyed. H8-WB8(R) affixes Scrap Shield Fragment to Scrap Shield. H8-WB8(R) suffers critical hit (Burn). Map ----- +----------------------------------------------------+ | ?# #### % %#??????????????????????? | | # # ## ## #??????????????????????? | | ?# ### ## ##%& %#??????????????????????? | | ? ??# #?# ########% #??????????????????????? | | ????## ### ##????? #??????????????????????? | | ????# " ##???? %#??????????????????????? | | ????# " "" #???? ##??????????????????????? | | ????## """"" #????? ???????????????????????? | | ?????## """""* #????? ???????????????????????? | | ??????## """" #????? ??????????????????????? | | ????#### "### #????? ??????????????????????? | | ?#### ##??# ##?????? "?????????????????????? | | ## ##???##???????"""?????????????????????? | | # "##???????????###?????????????????????? | | """#???????????????????????????????????? | | # "" #???????????????????#???????????????? | | #" "" #????????????????"" #???????????????? | | #"" ## """ ##?????########??"" #???????????????? | | #" #####""" #?????#;;;;;;##""" #???????????????? | | #" ##?## " #######; ;;# ##??????????????? | | #" ### " "#"" ; #??????????????? | | ## " Rc #?????????????????? | | ?## #??????????????????? | | ??# " "; ##??????????????????? | | ??## "#####; ;#??????????????????? | | ???## [ #??#;;@ ;##???????????????????? | | ????# !% ##??#;!% ;#???????????????????? | | ???# ## !& #??#; * ;#???????????????????? | | ???## ## " ##??# #???????????????????? | | ??? # # ##??? ;#??????????????????? | | ?? # #######??? ##??????????????????? | | #####???????? #???????????????????? | | # # ??????????? ???????????????????? | | ### ?????????? ### ??????????????????? | | ??? ??????????#??# ##??????????????????? | | ???? ????????????# ##???????????????????? | | ???? ## ????????????# ##????????????????????? | | ????? ??#????????????# ###?????????????????????? | | ?????????????????????####????????????????????????? | | ?????????????????????????????????????????????????? | | ?????????????????????????????????????????????????? | | ?????????????????????????????????????????????????? | | ?????????????????????????????????????????????????? | | ?????????????????????????????????????????????????? | | ?????????????????????????????????????????????????? | | ?????????????????????????????????????????????????? | | ?????????????????????????????????????????????????? | | ?????????????????????????????????????????????????? | | ?????????????????????????????????????????????????? | | ?????????????????????????????????????????????????? | +----------------------------------------------------+ Best States ------------- Heat Dissipation 25 Energy Generation 14 Energy Capacity 280 Matter Stores 300 Matter Capacity 300 Sight Range 16 Terrain Scan Density 10 Armor Coverage 2000 Resistance: TH 50 Evasion (%) 55 Recoil Reduction 2 Item Schematics ----------------- None Robot Schematics ------------------ None Fabricated ------------ Nothing Repaired ---------- Nothing Studied --------- None Alien Tech Used ----------------- None Achievements -------------- Survival Of The Most Covered Challenges ------------ None Game ------ Seed StorageSiegeSuperbattery Manual? 1 Play Time 00:13:54 Cumulative 41.7 hours Start 2026.07.09 @ 16:54:55 End 2026.07.09 @ 17:06:16 Sessions 1 Manual Loads 0 Difficulty Rogue Special Mode None Game No. 34 Rogue 33 Adventurer 1 Explorer 0 Win Type - Total 1 Types 1/0/0/0/0/0/0/0/0/0 Lore% 28 Gallery% 36 Achievement% 37 Wizard Run 0 Options --------- Layout 1 ASCII 0 Keyboard 0 Movement Mouse Keybinds 0 Fullscreen 1 Font 32/SmallcapsGlow Map View 50x35 Zoom Use 0% Tactical HUD 0 Map Filters NONE Filters NONE Steam 1 RUN: 9abdcd9e-5f7f-457c-8206-69ea609b1162